bitfinex/quotes_ETHUSD_20241203
["timestamp","ask_amount","ask_price","bid_price","bid_amount"]
[1733238150531,0.69333715,3600.0,3599.9,1.63648839]
[1733238151035,0.69333715,3600.0,3599.9,0.11238839]
[1733238151537,1.04044387,3600.0,3599.9,0.11238839]
[1733238152131,1.04044387,3600.0,3599.9,0.028]
[1733238153211,0.69333715,3600.0,3599.9,0.11238839]
[1733238153910,0.69333715,3600.0,3599.9,1.66678839]
[1733238155699,0.69333715,3600.0,3599.9,0.11238839]
[1733238155905,0.69333715,3600.0,3599.9,0.028]
[1733238156311,1.24333715,3600.0,3599.9,0.028]
[1733238156514,4.64544186,3600.0,3599.9,0.028]
[1733238156768,2.77831,3599.3,3599.0,0.08438839]
[1733238156951,2.77862,3598.9,3598.5,0.08438839]
[1733238157245,2.77885,3598.6,3598.5,0.08438839]
[1733238157753,2.77909,3598.3,3598.2,0.08438839]
[1733238157918,2.77909,3598.3,3598.0,0.08438839]
[1733238158095,2.77924,3598.1,3598.0,0.08438839]
[1733238158298,2.77918,3598.2,3598.0,0.08438839]
[1733238158505,2.77924,3598.1,3598.0,0.08438839]
[1733238159138,2.77908,3598.4,3598.2,0.08438839]
[1733238159339,2.77909,3598.3,3598.2,0.08438839]
[1733238159819,2.77924,3598.1,3598.0,0.08438839]
[1733238160006,3.0,3599.1,3598.0,0.08438839]
[1733238160232,2.7792,3598.2,3598.0,0.08438839]
[1733238160404,2.77893,3598.5,3598.4,0.08438839]
[1733238161068,3.0,3599.1,3598.2,0.08438839]
[1733238161069,2.77909,3598.3,3598.2,0.08438839]
[1733238161573,2.77924,3598.1,3598.0,0.08438839]
[1733238161861,3.0,3599.1,3597.6,1.5651]
[1733238161862,0.55,3599.0,3598.4,0.08438839]
[1733238162014,2.7787,3598.8,3598.7,0.08438839]
[1733238162929,2.77808,3599.6,3599.1,0.08438839]
[1733238163128,2.77831,3599.3,3599.2,0.08438839]
[1733238164360,2.77847,3599.1,3599.0,0.08438839]
[1733238164673,0.55,3599.6,3598.7,0.08438839]
[1733238164956,2.77874,3598.8,3598.7,0.08438839]
[1733238165570,2.77847,3599.1,3598.7,0.08438839]
[1733238165868,0.49920852,3599.5,3598.7,0.08438839]
[1733238166008,2.77856,3599.0,3598.7,0.08438839]
[1733238166361,2.77856,3599.0,3598.9,0.08438839]
[1733238166579,0.49920852,3599.5,3599.1,0.08438839]
[1733238166772,2.77839,3599.2,3599.1,0.08438839]
[1733238167253,2.77824,3599.4,3599.3,0.08438839]
[1733238168094,2.77839,3599.2,3599.1,0.08438839]
[1733238168358,2.77854,3599.1,3599.0,0.08438839]
[1733238168710,4.29534,3599.1,3599.0,0.08438839]
[1733238169169,2.77854,3599.1,3599.0,0.08438839]
[1733238169318,0.277839,3599.2,3598.1,1.5832]
[1733238169319,2.77878,3598.7,3598.1,1.5832]
[1733238169518,0.277839,3599.2,3599.0,0.08438839]
[1733238169718,2.77847,3599.1,3599.0,0.08438839]
[1733238171333,3.55043369,3599.6,3599.2,0.08438839]
[1733238171334,3.0,3599.6,3599.2,0.08438839]
[1733238171552,2.77831,3599.3,3599.2,0.08438839]
[1733238171715,2.77831,3599.3,3599.1,0.08438839]
[1733238171957,2.77839,3599.2,3599.1,0.08438839]
[1733238172399,3.33405,3599.2,3598.1,1.5832]
[1733238172607,2.77893,3598.5,3598.4,0.08438839]
[1733238173100,0.55566,3599.2,3598.4,0.08438839]
[1733238173101,2.77859,3599.0,3598.4,0.08438839]
[1733238173303,2.77839,3599.2,3599.1,0.08438839]
[1733238173755,2.77878,3598.7,3598.6,0.08438839]
[1733238174164,2.77893,3598.5,3598.4,0.08438839]
[1733238174463,2.77909,3598.3,3598.2,0.08438839]
[1733238174684,2.77947,3597.8,3597.7,0.08438839]
[1733238174860,2.77947,3597.8,3596.1,1.6485]
[1733238174861,4.40197,3597.8,3596.1,1.6485]
[1733238175072,3.84803059,3597.4,3596.1,1.6485]
[1733238175269,3.16466306,3597.3,3596.1,1.6485]
[1733238175474,5.0,3598.4,3595.5,0.1]
[1733238175475,3.84803059,3598.2,3596.3,1.6485]
[1733238175740,2.77961,3597.7,3596.3,1.8485]
[1733238175898,0.55,3598.6,3596.9,1.6485]
[1733238176238,2.77901,3598.4,3597.1,2.77997]
[1733238176533,2.77924,3598.1,3596.9,1.87629353]
[1733238176733,2.77911,3598.3,3597.0,0.46566035]
[1733238176886,3.84803059,3598.6,3597.0,0.02779085]
[1733238177080,2.77917,3598.2,3597.0,0.02779085]
[1733238177280,3.84803059,3598.6,3597.1,1.6233]
[1733238177599,0.94054306,3598.7,3597.3,1.6413]
[1733238177600,2.77894,3598.5,3597.3,1.6413]
[1733238177817,3.0,3599.1,3597.4,0.44489708]
[1733238178133,0.55,3599.0,3597.3,1.6413]
[1733238178281,2.77909,3598.3,3597.3,1.6413]
[1733238178485,2.77914,3598.3,3597.3,1.6413]
[1733238179200,0.55,3599.0,3597.3,1.6413]
[1733238179610,3.0,3598.6,3597.3,1.6413]
[1733238179917,4.2961851,3598.7,3597.4,0.02779397]
[1733238180140,2.77918,3598.2,3597.4,1.504]
[1733238180287,2.77854,3599.0,3597.4,1.504]
[1733238180488,2.77884,3598.7,3597.5,0.02779042]
[1733238180787,4.2961851,3598.7,3597.4,1.504]
[1733238181132,2.77904,3598.4,3597.4,1.6544]
[1733238181310,2.77883,3598.7,3597.4,1.6544]
[1733238181517,2.77883,3598.7,3597.5,1.6266]
[1733238181737,4.2961851,3599.7,3597.5,1.6266]
[1733238181738,3.0,3599.2,3597.5,1.6266]
[1733238181887,2.77847,3599.1,3597.6,0.02778666]
[1733238182095,2.77847,3599.1,3597.7,1.80707867]
[1733238182323,2.77909,3598.3,3597.7,1.80707867]
[1733238182630,2.77909,3598.3,3597.7,1.6266]
[1733238182835,4.2961851,3599.2,3597.7,1.6266]
[1733238182836,2.779,3598.5,3597.7,1.6266]
[1733238183547,4.2961851,3599.2,3597.7,1.6266]
[1733238183829,2.77833,3599.3,3597.8,1.67468829]
[1733238184029,2.77834,3599.3,3598.1,1.6469]
[1733238184188,2.77833,3599.3,3598.2,0.02778359]
[1733238184386,2.0437,3600.1,3598.3,1.6469]
[1733238184644,2.0437,3600.1,3598.6,1.6469]
[1733238184951,0.69333715,3600.0,3598.6,1.87468006]
[1733238185087,0.69333715,3600.0,3598.7,1.6469]
[1733238185292,0.69333715,3600.0,3599.0,1.5927]
[1733238185802,3.47111715,3600.0,3599.0,1.5927]
[1733238186115,0.69333715,3600.0,3599.0,4.39923]
[1733238186314,2.77793,3599.8,3599.1,0.439923]
[1733238186492,2.77793,3599.8,3599.0,1.6207]
[1733238186493,2.77798,3599.8,3599.0,1.6207]
[1733238186688,3.47112715,3600.0,3599.1,0.028]
[1733238186889,0.69333715,3600.0,3599.1,0.028]
[1733238187132,2.77792,3599.9,3599.1,0.028]
[1733238187317,2.77805,3599.7,3599.1,0.028]
[1733238187491,0.69333715,3600.0,3599.1,0.028]
[1733238187492,2.22993715,3600.0,3599.1,0.028]
[1733238187694,2.77839,3599.2,3599.1,0.028]
[1733238188522,5.77839,3599.2,3599.1,0.028]
[1733238188823,6.32839,3599.2,3599.1,0.028]
[1733238189342,2.77839,3599.2,3599.1,0.028]
[1733238189500,3.334051,3599.2,3599.1,0.028]
[1733238189703,3.884051,3599.2,3599.1,0.028]
[1733238189915,3.334051,3599.2,3599.1,0.028]
[1733238190094,2.77839,3599.2,3599.1,0.028]
[1733238190293,3.32839,3599.2,3599.1,0.028]
[1733238190493,7.85639,3599.2,3599.1,0.028]
[1733238191388,7.30639,3599.2,3599.1,0.028]
[1733238191636,7.85639,3599.2,3599.1,0.028]
[1733238191842,8.369851,3599.2,3599.1,0.028]
[1733238192141,7.30639,3599.2,3599.1,0.028]
[1733238192503,12.1525751,3599.2,3599.1,0.028]
[1733238193545,12.1525751,3599.2,3598.1,1.5817]
[1733238193546,2.77916,3598.2,3598.1,1.5817]
[1733238194289,4.2961851,3598.7,3597.5,1.5563]
[1733238194493,2.77996,3597.2,3596.3,2.10546189]
[1733238194694,2.78001,3597.1,3596.3,2.10546189]
[1733238194928,2.77939,3597.9,3596.3,1.5563]
[1733238195244,4.2961851,3598.2,3596.4,1.5563]
[1733238195424,2.77979,3597.4,3596.5,0.02779511]
[1733238195737,3.32939,3597.9,3596.4,1.5563]
[1733238195892,2.78002,3597.1,3596.4,1.5563]
[1733238196101,3.32955,3597.7,3596.4,1.5563]
[1733238196294,2.7803,3596.8,3596.4,1.5563]
[1733238196596,2.77995,3597.2,3596.4,1.5563]
[1733238196794,0.632939,3597.8,3596.4,1.5563]
[1733238197148,2.78048,3596.5,3596.4,1.5563]
[1733238197442,2.78001,3597.1,3595.2,1.5178]
[1733238197643,2.78011,3597.0,3595.4,1.5278]
[1733238197810,2.78016,3597.0,3595.6,4.30897]
[1733238198013,2.75457161,3598.0,3595.7,1.55560325]
[1733238198260,0.87715103,3597.9,3596.2,1.5836]
[1733238198593,2.77986,3597.3,3596.2,1.5836]
[1733238198998,3.0,3597.7,3596.2,1.61139861]
[1733238199229,0.87715103,3597.9,3596.2,1.5836]
[1733238199230,2.77996,3597.2,3596.2,1.5836]
[1733238199444,4.2961851,3597.7,3596.2,1.5836]
[1733238199679,2.78063,3596.3,3596.2,1.5836]
[1733238199977,4.2961851,3596.7,3595.1,1.5551]
[1733238200268,2.78123,3595.6,3595.1,1.5551]
[1733238200570,3.0,3596.8,3595.1,1.5551]
[1733238200723,3.0,3596.9,3595.6,2.78116]
[1733238200921,2.78102,3595.8,3595.7,0.02780208]
[1733238201136,3.0,3595.8,3594.7,1.5747]
[1733238201342,3.0,3596.3,3594.7,1.5747]
[1733238201543,2.78024,3596.9,3594.7,1.5747]
[1733238201544,4.2961851,3596.9,3594.9,2.78171]
[1733238201771,2.78024,3596.9,3595.5,2.78125]
[1733238202085,3.91933161,3597.3,3595.0,0.32875934]
[1733238202086,1.13947161,3597.3,3595.9,1.6548]
[1733238202239,2.78002,3597.1,3596.1,1.6548]
[1733238202663,1.13947161,3597.4,3596.1,1.68260028]
[1733238202868,2.77999,3597.2,3596.2,0.16826003]
[1733238203067,1.13947161,3597.4,3596.2,0.16826003]
[1733238203068,1.13947161,3597.4,3596.2,0.19605934]
[1733238203270,1.13947161,3597.4,3596.3,1.55779888]
[1733238203471,1.13947161,3597.4,3596.3,1.53]
[1733238203673,2.77996,3597.2,3596.3,1.53]
[1733238203883,1.13947161,3597.4,3596.3,1.558]
[1733238204643,3.32986,3597.3,3596.3,1.558]
[1733238204838,0.55,3597.1,3596.3,1.558]
[1733238205089,2.78025,3596.8,3596.3,1.558]
[1733238205250,0.55,3597.1,3596.3,1.558]
[1733238205456,2.78055,3596.4,3596.3,0.028]
[1733238205653,12.1425351,3596.4,3596.3,0.028]
[1733238205886,2.78041,3596.6,3596.3,0.028]
[1733238206183,0.55,3596.9,3596.3,0.028]
[1733238206392,10.0763551,3597.0,3596.3,0.028]
[1733238206545,1.4438703,3597.2,3596.3,0.028]
[1733238206742,4.2238503,3597.2,3596.3,0.028]
[1733238206943,0.56731863,3597.2,3596.3,0.028]
[1733238207139,3.34725863,3597.2,3596.3,0.028]
[1733238207344,0.56731863,3597.2,3596.3,0.028]
[1733238207579,3.34725863,3597.2,3596.3,0.028]
[1733238207795,0.14505047,3597.3,3596.3,0.028]
[1733238207945,0.14505047,3597.3,3596.3,0.05580069]
[1733238208147,0.14505047,3597.3,3596.3,0.028]
[1733238208384,1.16715903,3597.3,3596.3,0.028]
[1733238208687,0.55,3597.2,3596.3,0.028]
[1733238208898,3.32995,3597.2,3596.3,0.028]
[1733238209193,0.14505047,3597.3,3596.3,0.028]
[1733238209487,3.32995,3597.2,3596.3,0.028]
[1733238209741,1.07711856,3597.2,3596.3,0.028]
[1733238209891,1.13947161,3598.9,3596.5,1.6634]
[1733238210230,0.14501055,3598.5,3597.5,2.77966]
[1733238210386,0.14501055,3598.5,3597.3,1.6634]
[1733238210591,0.14501055,3598.5,3597.5,0.028]
[1733238210894,0.14501055,3598.5,3597.6,0.02779078]
[1733238211096,0.14501055,3598.5,3597.3,1.6914]
[1733238211282,2.7794,3597.9,3597.5,0.028]
[1733238211682,2.77921,3598.2,3597.5,0.028]
[1733238211883,3.0,3598.4,3597.5,0.028]
[1733238212108,3.0,3598.3,3597.5,0.028]
[1733238212381,0.14501055,3598.5,3597.5,0.028]
[1733238212682,2.92394055,3598.5,3597.5,0.028]
[1733238213193,2.77909,3598.3,3597.5,0.028]
[1733238213415,0.14501055,3598.5,3597.5,0.028]
[1733238213629,2.77904,3598.4,3597.5,0.028]
[1733238213804,0.29240506,3598.4,3597.5,0.028]
[1733238214005,0.55,3598.4,3597.5,0.028]
[1733238214221,2.77963,3597.6,3597.5,0.028]
[1733238214419,3.32963,3597.6,3597.5,0.028]
[1733238214745,5.9324851,3598.1,3597.5,0.028]
[1733238214746,2.2035322,3598.1,3597.5,0.028]
[1733238214950,3.0,3598.4,3597.5,0.028]
[1733238215244,2.77904,3598.4,3597.6,1.5719]
[1733238215418,3.55498817,3599.0,3597.6,1.5999]
[1733238215954,2.77888,3598.6,3597.6,1.5999]
[1733238216115,3.14501055,3598.5,3597.6,1.5999]
[1733238216842,0.14501055,3598.5,3597.6,1.5999]
[1733238217017,2.92394055,3598.5,3597.6,1.5999]
[1733238217418,2.77901,3598.4,3597.6,1.5999]
[1733238217623,3.14501055,3598.5,3597.6,1.5999]
[1733238217830,2.77901,3598.4,3597.6,1.5999]
[1733238218150,3.14501055,3598.5,3597.6,1.5999]
[1733238218539,0.14501055,3598.5,3597.6,1.5999]
[1733238218851,0.55,3598.4,3597.6,1.5999]
[1733238219017,2.92396055,3598.5,3597.7,0.02779396]
[1733238219204,2.77908,3598.4,3597.6,1.5999]
[1733238219399,0.14501055,3598.5,3597.6,1.5999]
[1733238219905,0.14501055,3598.5,3597.7,0.028]
[1733238220309,2.92397055,3598.5,3597.7,0.028]
[1733238220555,2.77901,3598.4,3597.7,0.028]
[1733238220756,2.77919,3598.2,3597.7,0.028]
[1733238220953,0.84240206,3598.4,3597.7,0.028]
[1733238221123,2.77947,3597.8,3597.7,0.028]
[1733238221322,3.32947,3597.8,3597.7,0.028]
[1733238221518,6.32947,3597.8,3597.7,0.028]
[1733238221718,7.66996351,3597.8,3597.7,0.028]
[1733238222715,0.29240206,3598.4,3597.7,0.028]
[1733238223242,2.77947,3597.8,3597.7,0.028]
[1733238223844,5.77947,3597.8,3597.7,0.028]
[1733238224158,6.32947,3597.8,3597.7,0.028]
[1733238224309,5.1654,3597.8,3596.8,1.6507]
[1733238224662,2.77992,3597.3,3596.8,1.6507]
[1733238224959,0.51654,3597.7,3596.8,1.6507]
[1733238224960,3.0,3597.4,3596.8,1.6507]
[1733238225164,3.0,3597.4,3595.8,2.78095]
[1733238225165,3.32986,3597.3,3595.9,1.637]
[1733238225334,2.78008,3597.1,3595.9,1.637]
[1733238225528,2.78008,3597.1,3596.0,0.1637]
[1733238225733,2.78032,3596.7,3595.9,1.637]
[1733238226138,3.55,3597.4,3595.9,1.637]
[1733238226317,2.78086,3596.0,3595.9,1.637]
[1733238226520,2.78017,3596.9,3595.9,1.637]
[1733238226521,2.7808,3596.1,3595.9,1.637]
[1733238226825,3.0,3597.0,3595.9,1.637]
[1733238226826,2.7805,3596.5,3595.9,1.637]
[1733238227145,2.78024,3596.8,3595.9,1.637]
[1733238227316,2.78055,3596.4,3595.9,1.637]
[1733238227517,2.78086,3596.0,3595.9,1.637]
[1733238227748,0.55,3596.4,3594.9,1.5286]
[1733238227749,2.78103,3595.8,3594.9,1.5286]
[1733238228258,0.55,3596.1,3594.9,1.5286]
[1733238228557,2.78133,3595.4,3594.9,1.5286]
[1733238228764,2.78078,3596.2,3595.1,2.78156]
[1733238229053,2.78095,3595.9,3595.2,1.6224]
[1733238229254,2.78079,3596.1,3595.2,1.6224]
[1733238229459,2.78049,3596.5,3595.4,2.7813]
[1733238229769,0.3896034,3596.7,3595.3,1.5475]
[1733238229920,2.7804,3596.6,3595.3,1.5475]
[1733238230117,2.78057,3596.4,3595.4,0.02780937]
[1733238230313,3.0,3596.8,3595.4,0.02780726]
[1733238230639,5.78025,3596.8,3595.8,1.6321]
[1733238230955,2.78017,3596.9,3595.8,4.44111]
[1733238231114,2.78017,3596.9,3595.8,4.885221]
[1733238231316,1.13947161,3597.3,3595.8,2.104211]
[1733238231565,2.78028,3596.8,3595.8,2.104211]
[1733238231770,2.7801,3597.0,3595.8,2.104211]
[1733238232088,2.7801,3597.0,3595.8,1.6601]
[1733238232265,1.13947161,3597.3,3596.6,2.78036]
[1733238232466,2.78017,3596.9,3595.8,1.6615]
[1733238232613,2.78017,3596.9,3595.8,0.028]
[1733238232614,2.78083,3596.1,3595.8,0.028]
[1733238232816,2.78033,3596.7,3595.9,1.6335]
[1733238233014,1.65115254,3597.2,3595.9,1.6335]
[1733238233015,2.78027,3596.8,3596.0,0.16615]
[1733238233554,0.55,3597.1,3596.0,0.19415]
[1733238233863,0.14505254,3597.2,3596.0,0.19415]
[1733238234235,1.13947161,3597.3,3596.2,1.6454]
[1733238234574,1.13947161,3597.3,3596.7,1.6146]
[1733238234760,1.13947161,3597.3,3597.2,2.77993]
[1733238235063,1.13947161,3597.3,3596.9,1.6146]
[1733238235514,5.73017334,3598.4,3596.9,1.6146]
[1733238235862,2.77979,3597.4,3596.9,1.6146]
[1733238236046,4.6334821,3598.3,3596.9,1.6146]
[1733238236047,2.57980054,3598.2,3596.9,1.6146]
[1733238236257,2.09973941,3598.1,3596.9,1.6146]
[1733238236563,2.77964,3597.6,3596.9,1.6426]
[1733238236917,2.77975,3597.5,3596.9,1.6426]
[1733238237114,2.77992,3597.3,3596.9,1.6426]
[1733238237358,0.55,3597.4,3596.9,1.6426]
[1733238237530,0.55,3597.4,3596.9,1.5519]
[1733238237734,0.55,3597.2,3596.9,1.5519]
[1733238237935,3.32994,3597.2,3596.9,1.5519]
[1733238238347,1.13947161,3598.0,3593.9,1.5239]
[1733238238348,2.1335,3595.8,3593.9,1.5239]
[1733238238664,4.29829967,3595.5,3594.6,1.5904]
[1733238238977,2.78096,3595.9,3594.6,4.37232]
[1733238239264,0.55,3596.2,3594.8,1.5904]
[1733238239418,2.78119,3595.6,3594.8,1.5904]
[1733238239649,2.78132,3595.5,3594.8,1.5904]
[1733238239849,2.78134,3595.4,3594.8,1.5904]
[1733238240264,2.78152,3595.2,3594.8,1.5904]
[1733238240463,2.78124,3595.6,3594.8,1.5904]
[1733238240665,2.78105,3595.8,3594.8,1.5904]
[1733238240997,1.13947161,3596.1,3595.0,2.78162]
[1733238241151,1.13947161,3596.1,3595.1,1.5006]
[1733238241351,1.13947161,3596.1,3595.1,4.28214]
[1733238241602,2.78069,3596.3,3595.1,4.28212]
[1733238241795,2.78054,3596.5,3595.4,2.78132]
[1733238242005,2.78062,3596.4,3595.5,1.5006]
[1733238242156,3.43863728,3596.9,3595.5,1.5006]
[1733238242357,4.29829967,3597.0,3595.7,1.5006]
[1733238242358,2.7801,3597.0,3595.7,1.5006]
[1733238242651,2.77996,3597.2,3595.8,1.5006]
[1733238242853,1.13947161,3597.3,3595.8,1.5006]
[1733238243058,2.78078,3596.2,3595.8,1.5006]
[1733238243254,2.78101,3595.9,3594.9,1.6545]
[1733238243699,4.29829967,3596.5,3594.9,1.6825]
[1733238243865,2.7808,3596.1,3594.9,4.46421]
[1733238244069,2.7808,3596.1,3595.0,2.78163]
[1733238244269,0.55,3596.4,3595.1,0.46509801]
[1733238244597,1.13947161,3596.7,3595.3,1.5539]
[1733238244598,0.55,3596.6,3595.3,1.5539]
[1733238244759,2.78072,3596.2,3595.3,1.5539]
[1733238245113,1.13947161,3596.9,3595.4,1.5655]
[1733238245315,1.13947161,3596.9,3595.3,0.028]
[1733238245316,1.70666902,3597.3,3595.7,2.78109]
[1733238245475,0.56719741,3597.3,3596.2,2.78064]
[1733238245659,7.07892967,3596.3,3596.2,0.028]
[1733238245967,2.80247161,3596.7,3596.2,0.028]
[1733238246168,2.78063,3596.3,3596.2,0.028]
[1733238246357,2.78042,3596.6,3596.2,0.028]
[1733238246557,2.78032,3596.7,3596.3,1.555]
[1733238247005,2.78032,3596.7,3596.3,1.583]
[1733238247156,0.55,3596.9,3596.3,1.583]
[1733238247361,4.13342339,3596.9,3596.3,1.583]
[1733238247564,1.35318339,3596.9,3596.3,1.583]
[1733238247986,2.78048,3596.5,3596.3,1.583]
[1733238248187,1.35318339,3596.9,3596.3,1.583]
[1733238248360,2.78055,3596.4,3596.3,0.028]
[1733238248706,3.33055,3596.4,3596.3,0.028]
[1733238248912,7.62884967,3596.4,3596.3,0.028]
[1733238249396,10.62884967,3596.4,3596.3,0.028]
[1733238249571,10.62884967,3596.4,3593.8,0.1]
[1733238249572,3.55,3596.3,3594.3,1.5072]
[1733238249905,4.29829967,3595.4,3594.3,1.5072]
[1733238250217,2.78196,3594.6,3594.3,1.5072]
[1733238250497,2.78148,3595.2,3594.3,1.5072]
[1733238250711,0.55,3594.6,3593.2,1.5072]
[1733238250914,4.41621,3594.7,3593.3,0.02782291]
[1733238251127,4.41621,3594.7,3593.2,2.05543358]
[1733238251128,4.29829967,3593.8,3593.2,1.5072]
[1733238251282,4.29829967,3593.8,3591.8,0.1]
[1733238251283,2.78303,3593.2,3592.8,1.5501]
[1733238251483,3.33264,3593.7,3592.8,1.5501]
[1733238251795,0.0279135,3593.6,3592.8,1.5501]
[1733238251992,2.78297,3593.3,3592.8,1.5501]
[1733238252221,4.29829967,3592.9,3591.3,0.43529998]
[1733238252521,4.29829967,3592.9,3590.5,1.5501]
[1733238252522,0.55,3591.9,3590.5,1.5501]
[1733238252706,3.0,3592.2,3590.5,1.5501]
[1733238252911,0.55,3591.9,3590.6,2.78501]
[1733238253220,0.55,3591.9,3590.5,1.5501]
[1733238253422,0.55,3591.5,3590.5,2.04065563]
[1733238253721,0.55,3591.7,3590.5,1.5501]
[1733238254024,0.55,3592.8,3590.8,1.6062]
[1733238254235,0.0279135,3592.7,3591.2,2.78454]
[1733238254691,0.55,3592.6,3591.2,2.78454]
[1733238254890,0.55,3592.3,3591.0,2.78469]
[1733238255112,2.78396,3592.0,3591.0,0.439089]
[1733238255277,0.5779135,3591.9,3590.8,1.6062]
[1733238255482,3.3619735,3591.9,3590.8,1.6062]
[1733238255718,3.33406,3591.9,3590.8,1.6062]
[1733238255907,2.78396,3592.0,3590.8,1.6062]
[1733238256105,3.33412,3591.8,3590.8,1.6062]
[1733238256280,3.33412,3591.8,3589.3,0.73553674]
[1733238256281,3.33428,3591.6,3589.7,2.78574]
[1733238256483,3.33428,3591.6,3590.2,1.6211]
[1733238256682,0.55,3591.6,3590.2,1.6211]
[1733238256909,3.33427,3591.6,3590.2,4.40645]
[1733238257083,0.0279135,3591.5,3590.2,4.40645]
[1733238257288,0.55,3591.6,3590.3,3.225915]
[1733238257498,0.0279135,3591.5,3590.3,0.440645]
[1733238257721,4.29829967,3591.4,3590.2,1.6211]
[1733238258032,0.55,3590.8,3589.8,1.6325]
[1733238258235,0.55,3590.8,3590.0,0.55520395]
[1733238258441,4.96510335,3591.7,3590.0,0.55520395]
[1733238258730,4.29829967,3590.9,3590.0,0.55520395]
[1733238258883,1.00774347,3590.8,3590.0,0.55520395]
[1733238259084,0.55,3590.8,3590.0,0.55520395]
[1733238259324,0.0279135,3590.7,3590.0,0.55520395]
[1733238259486,0.55,3590.8,3590.0,0.55520395]
[1733238259985,0.55,3590.8,3589.8,1.6325]
[1733238260184,0.0279135,3590.7,3589.8,1.6325]
[1733238260392,0.55,3591.0,3589.8,1.6325]
[1733238260619,0.55,3590.8,3589.8,1.6325]
[1733238261332,0.55,3591.1,3589.8,4.41814]
[1733238261485,4.96510335,3591.7,3590.4,2.78518]
[1733238261687,1.6289,3591.7,3590.4,2.78516]
[1733238261885,0.0279135,3591.6,3590.4,2.78516]
[1733238262121,0.16568135,3591.5,3589.8,1.6325]
[1733238262318,7.11065317,3591.4,3590.0,2.7855]
[1733238262527,4.29829967,3591.4,3589.8,1.6325]
[1733238262696,2.7849,3590.8,3589.8,1.6325]
[1733238262895,0.55,3590.8,3590.0,0.028]
[1733238263209,1.544,3591.3,3590.0,0.472616]
[1733238263534,0.0279135,3591.2,3590.0,0.028]
[1733238263691,2.8125035,3591.2,3590.0,0.028]
[1733238263899,2.78487,3590.9,3590.0,0.028]
[1733238264131,2.8128235,3590.8,3590.0,0.028]
[1733238264440,0.55,3590.5,3590.0,0.028]
[1733238264734,0.88629735,3590.5,3590.0,0.028]
[1733238264936,0.0279135,3590.4,3590.0,0.028]
[1733238265439,0.55,3590.2,3590.0,0.028]
[1733238265625,3.5779135,3590.2,3590.0,0.028]
[1733238265831,0.5779135,3590.2,3590.0,0.028]
[1733238266042,1.49202132,3590.1,3590.0,0.028]
[1733238266206,4.27745132,3590.1,3590.0,0.028]
[1733238266716,7.30536482,3590.1,3590.0,0.028]
[1733238266938,7.27745132,3590.1,3590.0,0.028]
[1733238267246,1.49202132,3590.1,3590.0,0.028]
[1733238267453,0.55,3590.2,3590.0,0.028]
[1733238267955,3.33536,3590.2,3590.0,0.028]
[1733238268101,2.8133435,3590.1,3590.0,0.028]
[1733238268306,3.3633435,3590.1,3590.0,0.028]
[1733238268903,0.0279135,3590.1,3590.0,0.028]
[1733238269222,1.6661,3591.3,3590.0,0.028]
[1733238269601,1.6661,3591.3,3590.1,1.5351]
[1733238269803,1.6661,3591.3,3590.5,2.78512]
[1733238270153,1.5817,3591.8,3590.3,0.0278488]
[1733238270305,1.6096135,3591.8,3590.2,0.434866]
[1733238270500,1.6096135,3591.8,3590.2,0.028]
[1733238270701,1.6096135,3591.8,3590.8,2.78488]
[1733238270941,1.6096135,3591.8,3590.5,2.78505]
[1733238271149,2.78372,3592.4,3590.6,1.6045]
[1733238271303,4.4448935,3592.5,3591.2,2.78457]
[1733238271507,5.44570611,3592.5,3591.3,2.7845]
[1733238271706,2.63421261,3592.5,3591.3,0.028]
[1733238271907,2.66212611,3592.5,3591.3,2.81243]
[1733238272158,2.78377,3592.3,3591.3,0.028]
[1733238272374,2.78397,3592.0,3591.3,0.028]
[1733238272509,2.78433,3591.6,3591.3,0.028]
[1733238272855,0.0279135,3591.5,3591.3,0.028]
[1733238273013,0.0279135,3591.8,3591.3,0.028]
[1733238273215,2.78416,3591.8,3591.3,0.028]
[1733238273468,4.37092,3591.6,3591.3,0.028]
[1733238273613,0.0279135,3591.5,3591.3,0.028]
[1733238273822,3.22430335,3591.4,3591.3,0.028]
[1733238274155,0.55,3591.9,3591.3,0.028]
[1733238274156,3.0,3591.7,3591.3,0.028]
[1733238274364,0.0279135,3591.6,3591.3,0.028]
[1733238274530,2.8121835,3591.6,3591.3,0.028]
[1733238274941,0.0279135,3591.6,3591.3,0.028]
[1733238275383,5.78442,3591.4,3591.3,0.028]
[1733238275671,6.641286,3591.4,3591.3,0.028]
[1733238276272,8.303786,3591.4,3591.3,0.028]
[1733238276457,8.853786,3591.4,3591.3,0.028]
[1733238276630,8.853786,3591.4,3589.7,0.56415373]
[1733238276631,2.78503,3590.7,3589.7,0.56415373]
[1733238276834,3.0,3591.3,3589.7,0.56415373]
[1733238277038,5.78452,3591.3,3590.0,2.78547]
[1733238277267,2.78468,3591.1,3590.1,0.278547]
[1733238277466,2.2125,3591.4,3590.2,1.6539]
[1733238277696,2.78465,3591.2,3590.2,1.6539]
[1733238278006,2.8124135,3591.3,3590.2,1.6539]
[1733238278163,1.6625,3591.4,3590.2,1.6539]
[1733238278363,2.78366,3592.4,3590.7,2.78491]
[1733238278364,2.78412,3591.8,3590.7,2.78491]
[1733238278585,1.5625,3591.9,3590.3,0.1932447]
[1733238278772,4.34654,3591.9,3590.7,2.78493]
[1733238278974,0.0279135,3591.8,3590.6,2.78498]
[1733238279192,2.78428,3591.6,3590.5,2.78511]
[1733238279392,1.5625,3591.9,3591.0,2.78472]